bitfinex/quotes_SOLUSD_20241111
["timestamp","ask_amount","ask_price","bid_price","bid_amount"]
[1731287446755,13.61249614,209.9,209.83,13.61249614]
[1731287447353,13.61249614,209.9,209.82,36.30879614]
[1731287447657,4.7639,209.92,209.86,13.61249614]
[1731287448357,4.7633,209.94,209.89,13.61249614]
[1731287448740,4.7633,209.94,209.88,13.61249614]
[1731287449457,159.8,209.93,209.88,13.61249614]
[1731287450957,18.37619614,209.92,209.85,11.9132]
[1731287451259,0.1,209.9,209.78,2.43159557]
[1731287451459,0.1,209.9,209.73,13.61249614]
[1731287451460,13.61249614,209.81,209.73,13.61249614]
[1731287451955,13.61249614,209.83,209.75,13.61249614]
[1731287452354,173.41249614,209.85,209.77,13.61249614]
[1731287452766,159.8,209.85,209.79,21.79470565]
[1731287452944,159.8,209.85,209.82,21.79470565]
[1731287453271,159.8,209.91,209.84,21.79470565]
[1731287453446,159.8,209.91,209.87,21.79470565]
[1731287453646,159.8,209.91,209.82,6.1003]
[1731287453647,159.8,209.91,209.86,21.79470565]
[1731287453843,186.35880565,209.91,209.83,21.79470565]
[1731287454055,21.79470565,209.9,209.83,21.79470565]
[1731287454254,164.5641,209.91,209.84,21.79470565]
[1731287454653,164.5641,209.91,209.86,21.79470565]
[1731287455048,164.5636,209.93,209.87,21.79470565]
[1731287455575,159.8,209.94,209.87,21.79470565]
[1731287456103,21.79470565,209.93,209.85,21.79470565]
[1731287456463,159.8,209.94,209.87,21.79470565]
[1731287456642,159.8,209.94,209.92,21.79470565]
[1731287456845,159.8,209.96,209.92,21.79470565]
[1731287457550,164.5622,209.99,209.94,21.79470565]
[1731287457865,164.5622,209.99,209.91,21.79470565]
[1731287457866,181.59470565,209.98,209.91,21.79470565]
[1731287458051,21.79470565,209.94,209.85,21.79470565]
[1731287458252,159.8,209.93,209.85,21.79470565]
[1731287458767,26.55840565,209.92,209.84,26.56010565]
[1731287458943,26.55840565,209.92,209.82,6.1003]
[1731287458944,21.79470565,209.91,209.83,26.56040565]
[1731287459148,21.79470565,209.91,209.83,33.70860565]
[1731287459565,26.55840565,209.92,209.84,21.79470565]
[1731287459767,26.55840565,209.92,209.85,21.79470565]
[1731287459970,21.79470565,209.9,209.83,33.70860565]
[1731287460474,26.55840565,209.92,209.83,33.70860565]
[1731287460663,26.55840565,209.92,209.83,38.47430565]
[1731287461169,26.55840565,209.92,209.78,6.5409]
[1731287461170,21.79470565,209.9,209.81,21.79470565]
[1731287461474,159.8,209.89,209.81,21.79470565]
[1731287461655,159.8,209.88,209.83,21.79470565]
[1731287461857,159.8,209.88,209.85,21.79470565]
[1731287462370,159.8,209.88,209.83,21.79470565]
[1731287462549,159.8,209.88,209.78,6.5409]
[1731287462550,21.79470565,209.86,209.78,6.5409]
[1731287463069,21.79470565,209.86,209.77,21.79470565]
[1731287463250,21.79470565,209.86,209.79,21.79470565]
[1731287463874,159.8,209.87,209.81,21.79470565]
[1731287464072,159.8,209.87,209.83,21.79470565]
[1731287464752,159.8,209.87,209.81,26.56070565]
[1731287466169,21.79470565,209.84,209.77,21.79470565]
[1731287466355,21.79470565,209.82,209.73,45.13710565]
[1731287466552,159.8,209.83,209.73,45.13710565]
[1731287466553,21.79470565,209.8,209.73,45.13710565]
[1731287467167,21.79470565,209.78,209.69,21.79470565]
[1731287467368,21.79470565,209.76,209.69,21.79470565]
[1731287467675,21.79470565,209.76,209.67,33.71810565]
[1731287467854,159.8,209.77,209.63,21.7792]
[1731287467855,159.8,209.77,209.71,21.79470565]
[1731287468471,159.8,209.77,209.75,21.79470565]
[1731287468667,159.8,209.82,209.75,21.79470565]
[1731287468850,159.8,209.81,209.75,21.79470565]
[1731287469252,159.8,209.81,209.74,20.0]
[1731287469863,21.79470565,209.78,209.71,21.79470565]
[1731287470174,21.79470565,209.8,209.71,21.79470565]
[1731287470467,4.7666,209.79,209.71,26.56310565]
[1731287470876,4.7666,209.79,209.71,21.79470565]
[1731287471123,21.79470565,209.78,209.69,26.56360565]
[1731287471374,21.79470565,209.74,209.65,21.79470565]
[1731287471579,159.8,209.77,209.65,21.79470565]
[1731287471580,21.79470565,209.72,209.65,21.79470565]
[1731287471956,159.8,209.71,209.63,21.79470565]
[1731287472160,21.79470565,209.66,209.59,21.79470565]
[1731287472363,4.7698,209.65,209.57,38.49520565]
[1731287472672,26.56450565,209.65,209.58,21.79470565]
[1731287472858,21.79470565,209.65,209.58,21.79470565]
[1731287473372,21.79470565,209.65,209.57,11.929]
[1731287474072,21.79470565,209.63,209.54,21.79470565]
[1731287474577,26.56500565,209.63,209.56,21.79470565]
[1731287475195,4.7683,209.72,209.62,21.79470565]
[1731287475487,10.7854,209.74,209.67,21.79470565]
[1731287475788,170.5854,209.74,209.67,21.79470565]
[1731287476769,164.5679,209.74,209.67,21.79470565]
[1731287476986,4.7679,209.74,209.67,21.79470565]
[1731287477195,21.79470565,209.75,209.67,21.79470565]
[1731287477490,16.0259,209.76,209.71,21.79470565]
[1731287478064,21.79470565,209.75,209.67,21.79470565]
[1731287478465,21.79470565,209.73,209.66,11.924]
[1731287478696,4.7677,209.75,209.59,22.0562]
[1731287478697,21.79470565,209.71,209.63,21.79470565]
[1731287478871,21.79470565,209.69,209.61,33.72130565]
[1731287479071,159.8,209.68,209.61,33.72130565]
[1731287479272,21.79470565,209.66,209.59,21.79470565]
[1731287479472,21.79470565,209.65,209.57,21.79470565]
[1731287479689,159.8,209.67,209.56,11.9295]
[1731287479690,181.59470565,209.67,209.59,21.79470565]
[1731287479988,159.8,209.67,209.61,21.79470565]
[1731287480196,45.57158965,209.66,209.58,21.79470565]
[1731287480491,45.57158965,209.66,209.57,21.79470565]
[1731287480492,21.79470565,209.64,209.57,21.79470565]
[1731287480693,159.8,209.65,209.61,21.79470565]
[1731287480893,164.5698,209.65,209.56,16.7014]
[1731287481278,159.8,209.65,209.56,16.7014]
[1731287481673,159.8,209.65,209.57,20.0]
[1731287481990,159.8,209.65,209.61,21.79470565]
[1731287483195,159.8,209.65,209.62,21.79470565]
[1731287483392,26.5627,209.69,209.57,20.0]
[1731287483393,45.57158965,209.67,209.59,21.79470565]
[1731287483597,21.79470565,209.65,209.58,21.79470565]
[1731287483801,21.79470565,209.66,209.58,21.79470565]
[1731287483980,45.57158965,209.67,209.6,21.79470565]
[1731287484395,23.776884,209.67,209.6,21.79470565]
[1731287484596,4.7696,209.66,209.6,21.79470565]
[1731287485296,159.8,209.68,209.62,21.79470565]
[1731287485601,159.8,209.67,209.64,21.79470565]
[1731287485769,159.8,209.67,209.58,16.7]
[1731287485770,159.8,209.67,209.66,21.79470565]
[1731287485975,159.8,209.75,209.67,20.0]
[1731287486174,159.8,209.74,209.7,21.79470565]
[1731287486383,159.8,209.74,209.7,4.7685]
[1731287486591,159.8,209.74,209.73,21.79470565]
[1731287486785,159.8,209.79,209.73,21.79470565]
[1731287487077,159.8,209.78,209.71,21.79470565]
[1731287487404,159.8,209.77,209.74,21.79470565]
[1731287487572,159.8,209.79,209.76,21.79470565]
[1731287487901,159.8,209.79,209.77,21.79470565]
[1731287488102,159.8,209.79,209.78,21.79470565]
[1731287488281,20.1566,209.87,209.78,21.79470565]
[1731287488477,20.1566,209.87,209.81,21.79470565]
[1731287488678,4.7645,209.89,209.84,21.79470565]
[1731287489002,4.764,209.91,209.85,21.79470565]
[1731287489495,36.81330565,209.92,209.85,21.79470565]
[1731287489684,15.0186,209.92,209.85,21.79470565]
[1731287489997,11.4067,209.95,209.89,21.79470565]
[1731287490175,15.0186,209.97,209.9,21.79470565]
[1731287490591,19.7812,209.97,209.9,21.79470565]
[1731287490986,41.57590565,209.97,209.89,21.79470565]
[1731287494295,21.79470565,209.95,209.89,21.79470565]
[1731287494804,41.57590565,209.97,209.89,21.79470565]
[1731287495179,10.10665105,210.01,209.95,21.79470565]
[1731287495689,4.96697662,210.0,209.95,21.79470565]
[1731287495995,4.96697662,210.0,209.96,21.79470565]
[1731287496174,10.10665105,210.01,209.96,21.79470565]
[1731287496986,10.10665105,210.01,209.98,21.79470565]
[1731287497302,10.10665105,210.01,209.96,21.79470565]
[1731287497605,10.10665105,210.01,209.98,21.79470565]
[1731287497802,4.7605,210.06,209.98,21.79470565]
[1731287498404,4.7601,210.08,210.01,21.79470565]
[1731287498907,38.41890565,210.09,210.03,21.79470565]
[1731287499379,4.7597,210.1,210.03,21.79470565]
[1731287499993,4.7597,210.1,210.04,21.79470565]
[1731287502904,21.79470565,210.1,210.02,21.79470565]
[1731287503084,21.79470565,210.11,210.04,21.79470565]
[1731287503285,21.79470565,210.11,210.02,21.79470565]
[1731287504194,26.55430565,210.11,210.02,26.55610565]
[1731287504500,21.79470565,210.09,210.02,21.79470565]
[1731287505005,45.57158965,210.1,210.02,21.79470565]
[1731287505389,21.79470565,210.11,210.04,21.79470565]
[1731287505590,26.55360565,210.13,210.04,21.79470565]
[1731287505797,183.576884,210.12,210.04,21.79470565]
[1731287506305,205.37158965,210.12,210.04,21.79470565]
[1731287506700,4.7594,210.11,210.04,21.79470565]
[1731287506914,21.79470565,210.1,210.04,21.79470565]
[1731287507291,26.55410565,210.11,210.03,21.79470565]
[1731287510514,26.55410565,210.11,210.03,26.55580565]
[1731287511798,164.5597,210.1,210.03,26.55580565]
[1731287513703,164.5597,210.1,210.03,21.79470565]
[1731287514118,21.79470565,210.09,210.01,21.79470565]
[1731287514608,186.35440565,210.1,210.02,21.79470565]
[1731287514925,186.35440565,210.1,210.04,21.79470565]
[1731287514926,164.5597,210.1,210.04,21.79470565]
[1731287515114,164.5597,210.1,210.02,21.79470565]
[1731287515620,164.5597,210.1,210.04,21.79470565]
[1731287516151,164.5597,210.1,210.02,21.79470565]
[1731287516333,164.5597,210.1,210.02,41.79470565]
[1731287517608,159.8,210.09,210.02,41.79470565]
[1731287517827,159.8,210.09,210.04,21.79470565]
[1731287518208,159.8,210.09,210.06,21.79470565]
[1731287518413,4.7595,210.11,210.06,21.79470565]
[1731287518614,4.7595,210.11,210.04,21.79470565]
[1731287520424,21.79470565,210.08,210.0,32.86990565]
[1731287520630,21.79470565,210.03,209.95,21.79470565]
[1731287521134,21.79470565,210.03,209.96,21.79470565]
[1731287521429,21.79470565,210.01,209.94,33.70280565]
[1731287521625,159.8,210.06,209.92,4.7635]
[1731287521626,21.79470565,210.0,209.93,21.79470565]
[1731287522011,21.79470565,210.0,209.93,26.55810565]
[1731287522335,15.4138,210.03,209.97,21.79470565]
[1731287522627,159.8,210.06,210.01,21.79470565]
[1731287522827,20.8784,210.08,210.03,21.79470565]
[1731287523124,20.8784,210.08,209.96,16.6696]
[1731287523125,164.5598,210.1,210.04,21.79470565]
[1731287523651,159.8,210.1,210.05,21.79470565]
[1731287523843,159.8,210.13,210.07,21.79470565]
[1731287524134,181.59470565,210.13,210.05,21.79470565]
[1731287524304,181.59470565,210.13,209.98,15.9315]
[1731287524305,21.79470565,210.09,210.02,41.79470565]
[1731287524511,159.8,210.13,209.96,33.70170565]
[1731287524512,21.79470565,210.04,209.96,33.70170565]
[1731287524709,21.79470565,210.04,209.93,15.9315]
[1731287524710,21.79470565,210.02,209.95,21.79470565]
[1731287524924,21.79470565,210.0,209.92,26.55820565]
[1731287525128,21.79470565,209.99,209.92,21.79470565]
[1731287525532,21.79470565,209.99,209.91,27.93840565]
[1731287525742,21.79470565,209.99,209.92,21.79470565]
[1731287526114,21.79470565,209.99,209.91,32.70220565]
[1731287526325,21.79470565,209.96,209.88,21.79470565]
[1731287526525,21.79470565,209.9,209.82,26.56050565]
[1731287526728,21.79470565,209.89,209.82,26.56050565]
[1731287526917,21.79470565,209.92,209.85,21.79470565]
[1731287527637,175.5081,209.94,209.89,21.79470565]
[1731287527937,176.1537,210.0,209.93,21.79470565]
[1731287528118,176.1537,210.0,209.94,21.79470565]
[1731287528441,176.1537,210.0,209.86,20.0]
[1731287528736,176.1537,210.0,209.9,21.79470565]
[1731287528737,21.79470565,209.97,209.9,21.79470565]
[1731287529234,38.14840565,210.0,209.93,21.79470565]
[1731287529426,202.71030565,210.0,209.92,21.79470565]
[1731287529636,197.94840565,210.0,209.93,21.79470565]
[1731287529841,176.1537,210.0,209.95,21.79470565]
[1731287530342,159.8,210.0,209.95,21.79470565]
[1731287531446,159.8,210.0,209.94,21.79470565]
[1731287531739,159.8,210.0,209.95,21.79470565]
[1731287532440,21.79470565,209.98,209.91,33.70400565]
[1731287532821,21.79470565,209.93,209.86,16.6772]
[1731287533121,26.55680565,210.0,209.82,4.7659]
[1731287533122,21.79470565,209.9,209.82,4.7659]
[1731287533444,23.776884,209.93,209.82,4.7659]
[1731287533621,21.79470565,209.9,209.82,4.7659]
[1731287533819,21.79470565,209.9,209.81,18.4903]
[1731287534037,159.8,209.98,209.89,21.79470565]
[1731287534237,159.8,209.98,209.84,0.1]
[1731287534238,159.8,210.0,209.96,21.79470565]
[1731287534442,159.8,209.99,209.94,21.79470565]
[1731287535914,159.8,209.99,209.93,21.79470565]
[1731287536330,164.5622,209.99,209.93,21.79470565]
[1731287536538,21.79470565,209.96,209.89,21.79470565]
[1731287536723,181.59470565,209.95,209.87,21.79470565]
[1731287536917,159.8,209.95,209.89,21.79470565]
[1731287537114,159.8,209.95,209.93,21.79470565]
[1731287537721,159.8,209.95,209.92,21.79470565]
[1731287537945,159.8,209.95,209.93,21.79470565]
[1731287538127,159.8,209.95,209.91,16.6737]
[1731287538128,159.8,209.95,209.94,21.79470565]
[1731287538316,159.8,210.0,209.94,21.79470565]
[1731287538517,159.8,210.0,209.96,21.79470565]
[1731287538741,159.8,210.0,209.98,21.79470565]
[1731287538941,159.8,210.0,209.97,21.79470565]
[1731287539540,4.7612,210.03,209.97,21.79470565]
[1731287539738,4.7612,210.03,209.91,11.9098]
[1731287539739,21.79470565,210.02,209.94,21.79470565]
[1731287539939,4.7612,210.03,209.92,4.7637]
[1731287539940,21.79470565,209.99,209.92,20.0]
[1731287540130,21.79470565,210.01,209.94,21.79470565]
[1731287540325,21.79470565,210.02,209.95,21.79470565]
[1731287540542,21.79470565,210.0,209.92,21.79470565]
[1731287540716,21.79470565,209.99,209.92,21.79470565]
[1731287540921,45.57158965,210.02,209.94,21.79470565]
[1731287541123,21.79470565,210.01,209.93,21.79470565]
[1731287541539,21.79470565,210.01,209.94,21.79470565]
[1731287541741,50.33308965,210.02,209.94,21.79470565]
[1731287541923,21.79470565,210.01,209.93,21.79470565]
[1731287542320,23.776884,210.02,209.95,21.79470565]
[1731287542535,169.52781556,210.04,209.97,21.79470565]
[1731287542738,164.561,210.04,209.98,21.79470565]
[1731287543243,159.8,210.05,210.01,21.79470565]
[1731287544152,159.8,210.05,210.0,21.79470565]
[1731287544651,159.8,210.05,210.01,21.79470565]
[1731287545934,159.8,210.05,210.04,21.79470565]
[1731287546246,159.8,210.15,210.05,20.0]
[1731287546450,159.8,210.15,210.1,21.79470565]
[1731287546635,159.8,210.15,210.09,21.79470565]
[1731287546952,169.89978461,210.16,210.11,21.79470565]
[1731287547953,159.8,210.16,210.11,21.79470565]
[1731287550263,164.5574,210.2,210.13,21.79470565]
[1731287550434,159.8,210.19,210.13,21.79470565]
[1731287551266,186.35240565,210.19,210.11,21.79470565]
[1731287551562,21.79470565,210.17,210.1,21.79470565]
[1731287551858,164.5577,210.19,210.08,33.69480565]
[1731287551859,21.79470565,210.15,210.08,33.69480565]
[1731287552044,21.79470565,210.16,210.09,21.79470565]
[1731287552240,21.79470565,210.17,210.1,21.79470565]
[1731287552446,159.8,210.18,210.13,21.79470565]
[1731287552663,159.8,210.18,210.14,21.79470565]
[1731287552870,159.8,210.18,210.15,21.79470565]
[1731287553043,175.6632,210.21,210.16,21.79470565]
[1731287553362,197.45790565,210.21,210.13,21.79470565]
[1731287553563,21.79470565,210.19,210.12,33.69240565]
[1731287553761,21.79470565,210.2,210.12,33.69240565]
[1731287554261,202.21510565,210.21,210.13,21.79470565]
[1731287555268,21.79470565,210.2,210.12,38.45150565]
[1731287555446,21.79470565,210.2,210.12,33.69240565]
[1731287556139,159.8,210.19,210.12,33.69240565]
[1731287556765,26.55250565,210.18,210.1,21.79470565]
[1731287556961,4.7578,210.18,210.12,21.79470565]
[1731287557145,4.7578,210.18,210.13,21.79470565]
[1731287557347,4.7578,210.18,210.11,21.79470565]
[1731287558256,4.7578,210.18,210.11,26.55410565]
[1731287559668,4.7578,210.18,210.12,21.79470565]
[1731287559866,4.7578,210.18,210.13,21.79470565]
[1731287560647,159.8,210.19,210.15,21.79470565]
[1731287561778,21.79470565,210.23,210.15,21.79470565]
[1731287561779,164.5566,210.24,210.18,21.79470565]
[1731287561969,4.7561,210.26,210.2,21.79470565]
[1731287562163,26.55080565,210.26,210.18,21.79470565]
[1731287563981,21.79470565,210.24,210.16,21.79470565]
[1731287564476,45.57158965,210.25,210.17,21.79470565]
[1731287564987,159.8,210.24,210.17,21.79470565]
[1731287565267,26.55130565,210.23,210.17,21.79470565]
[1731287565478,21.79470565,210.22,210.14,21.79470565]
[1731287565680,26.55130565,210.23,210.15,21.79470565]
[1731287565973,26.55130565,210.23,210.16,21.79470565]
[1731287566165,21.79470565,210.22,210.15,21.79470565]
[1731287566567,4.7571,210.21,210.15,21.79470565]
[1731287567659,4.7571,210.21,210.16,21.79470565]
[1731287568360,159.8,210.2,210.13,21.79470565]
[1731287568667,21.79470565,210.17,210.07,11.9007]
[1731287568980,21.79470565,210.12,210.05,27.92030565]
[1731287569277,21.79470565,210.14,210.07,21.79470565]
[1731287570275,4.7587,210.14,210.08,21.79470565]
[1731287570471,4.7587,210.14,210.06,21.79470565]
[1731287571779,11.8928,210.21,210.06,21.79470565]
[1731287571780,159.8,210.22,210.13,21.79470565]
[1731287571960,4.7564,210.24,210.17,21.79470565]
[1731287572586,159.8,210.23,210.17,21.79470565]
[1731287573083,21.79470565,210.21,210.13,21.79470565]
[1731287573270,21.79470565,210.19,210.11,21.79470565]
[1731287573576,159.8,210.18,210.11,21.79470565]
[1731287574162,181.59470565,210.17,210.09,21.79470565]
[1731287574483,21.79470565,210.17,210.09,21.79470565]
[1731287575462,4.7582,210.16,210.09,21.79470565]
[1731287576684,21.79470565,210.15,210.07,21.79470565]
[1731287576872,21.79470565,210.13,210.05,21.79470565]
[1731287577180,159.8,210.12,210.05,26.55530565]
[1731287577379,159.8,210.12,210.05,38.45720565]
[1731287577686,159.8,210.12,210.08,21.79470565]
[1731287577864,159.8,210.12,210.09,21.79470565]
[1731287578184,159.8,210.12,210.11,21.79470565]
[1731287578486,159.8,210.19,210.11,21.79470565]
[1731287578679,159.8,210.18,210.12,21.79470565]
[1731287579385,164.5579,210.18,210.12,21.79470565]
[1731287579569,159.8,210.19,210.14,21.79470565]
[1731287581484,181.59470565,210.22,210.14,26.55330565]
[1731287581700,181.59470565,210.22,210.16,21.79470565]
[1731287581701,159.8,210.22,210.16,21.79470565]
[1731287581862,164.5569,210.22,210.16,21.79470565]
[1731287582574,164.5569,210.22,210.14,33.69150565]
[1731287582575,186.35160565,210.22,210.14,33.69150565]
[1731287582773,21.79470565,210.18,210.1,33.69370565]
[1731287583181,21.79470565,210.18,210.1,38.45330565]
[1731287583379,21.79470565,210.2,210.12,21.79470565]
[1731287583891,4.7576,210.19,210.12,26.55360565]
[1731287584182,4.7576,210.19,210.14,21.79470565]
[1731287584381,159.8,210.21,210.14,21.79470565]
[1731287584563,164.5573,210.21,210.14,21.79470565]
[1731287586881,21.79470565,210.2,210.12,21.79470565]
[1731287587083,21.79470565,210.16,210.08,21.79470565]
[1731287587292,21.79470565,210.14,210.06,27.90480565]
[1731287587469,21.79470565,210.16,210.08,21.79470565]
[1731287587671,21.79470565,210.18,210.1,21.79470565]
[1731287588680,159.8,210.17,210.1,21.79470565]
[1731287588991,4.7582,210.16,210.1,21.79470565]
[1731287589174,159.8,210.17,210.12,21.79470565]
[1731287589374,159.8,210.17,210.14,21.79470565]
[1731287589778,159.8,210.21,210.16,21.79470565]
[1731287589987,4.757,210.22,210.16,21.79470565]
[1731287590186,4.757,210.22,210.1,21.79470565]
[1731287590187,26.55170565,210.22,210.14,21.79470565]
[1731287590488,26.55170565,210.22,210.1,21.79470565]
[1731287590489,4.757,210.22,210.16,21.79470565]
[1731287593575,164.5566,210.24,210.18,21.79470565]
[1731287593775,28.2588,210.3,210.22,21.79470565]
[1731287593776,159.8,210.28,210.22,21.79470565]
[1731287593994,159.8,210.27,210.22,21.79470565]
[1731287595575,164.5559,210.27,210.22,21.79470565]
[1731287596090,159.8,210.33,210.26,21.79470565]
[1731287596293,10.0915302,210.34,210.29,21.79470565]
[1731287596679,10.0915302,210.34,210.31,21.79470565]
[1731287596883,164.5529,210.4,210.33,21.79470565]
[1731287597199,164.5529,210.4,210.27,43.776884]
[1731287597200,181.59470565,210.44,210.37,20.0]
[1731287597577,4.7523,210.43,210.37,20.0]
[1731287597896,4.7523,210.43,210.36,21.79470565]
[1731287598382,159.8,210.44,210.39,21.79470565]
[1731287598585,21.79470565,210.45,210.37,21.79470565]
[1731287598981,164.5516,210.46,210.4,21.79470565]
[1731287600482,159.8,210.47,210.4,21.79470565]
[1731287600687,159.8,210.47,210.42,21.79470565]
[1731287601199,181.59470565,210.47,210.39,46.54770565]
[1731287601508,21.79470565,210.45,210.38,6.4386]
[1731287601975,21.79470565,210.43,210.36,41.79470565]
[1731287602480,4.7516,210.46,210.33,21.79470565]
[1731287602481,21.79470565,210.4,210.33,21.79470565]
[1731287602694,181.59470565,210.39,210.32,21.79470565]
[1731287603081,181.59470565,210.39,210.29,6.2889]
[1731287603082,21.79470565,210.37,210.3,21.79470565]
[1731287603294,21.79470565,210.38,210.31,21.79470565]
[1731287603489,21.79470565,210.37,210.3,21.79470565]
[1731287603690,21.79470565,210.38,210.31,21.79470565]
[1731287603978,21.79470565,210.36,210.29,18.1771]
[1731287604406,21.79470565,210.36,210.29,39.97180565]
[1731287604584,21.79470565,210.36,210.29,44.72710565]
[1731287605496,181.59470565,210.36,210.29,44.72710565]
[1731287607086,181.59470565,210.36,210.29,11.8882]
[1731287607488,181.59470565,210.36,210.29,33.68290565]
[1731287607691,159.8,210.36,210.3,21.79470565]
[1731287607996,159.8,210.36,210.33,21.79470565]
[1731287608606,159.8,210.36,210.34,21.79470565]
[1731287608906,159.8,210.36,210.35,21.79470565]
[1731287609102,159.8,210.42,210.35,46.54860565]
[1731287609301,21.79470565,210.41,210.34,21.79470565]
[1731287609506,164.5524,210.42,210.34,21.79470565]
[1731287609688,159.8,210.42,210.35,21.79470565]
[1731287610404,164.5518,210.45,210.38,21.79470565]
[1731287610579,159.8,210.44,210.38,21.79470565]
[1731287610784,181.59470565,210.44,210.36,21.79470565]
[1731287611209,181.59470565,210.44,210.36,26.54840565]
[1731287611512,181.59470565,210.44,210.37,20.0]
[1731287612504,181.59470565,210.44,210.36,11.8843]
[1731287612505,21.79470565,210.42,210.36,11.8843]
[1731287612890,159.8,210.41,210.35,21.79470565]
[1731287613096,21.79470565,210.4,210.34,4.754]
[1731287613301,21.79470565,210.38,210.32,20.0]
[1731287613511,181.59470565,210.39,210.32,41.79470565]
[1731287613692,159.8,210.39,210.33,21.79470565]
[1731287613894,159.8,210.39,210.34,21.79470565]
[1731287614097,159.8,210.39,210.32,20.0]
[1731287614098,159.8,210.39,210.33,21.79470565]
[1731287614607,159.8,210.39,210.33,26.54890565]
[1731287614997,159.8,210.39,210.34,21.79470565]
[1731287615195,159.8,210.39,210.33,26.54890565]
[1731287615504,159.8,210.39,210.35,21.79470565]
[1731287615803,159.8,210.39,210.34,26.54870565]
[1731287616112,159.8,210.39,210.34,4.754]
[1731287616707,159.8,210.39,210.35,21.79470565]
[1731287617612,159.8,210.39,210.36,21.79470565]
[1731287618112,26.54650565,210.45,210.38,21.79470565]
[1731287618313,159.8,210.44,210.38,21.79470565]
[1731287618499,181.59470565,210.44,210.37,21.79470565]
[1731287619012,181.59470565,210.44,210.37,20.0]
[1731287619312,21.79470565,210.41,210.35,11.8849]
[1731287619497,21.79470565,210.42,210.35,11.8849]
[1731287619807,164.552,210.44,210.38,21.79470565]
[1731287620007,4.752,210.44,210.39,20.0]
[1731287620310,26.54670565,210.44,210.37,21.79470565]
[1731287620512,21.79470565,210.43,210.36,41.79470565]
[1731287621310,159.8,210.44,210.4,21.79470565]
[1731287621609,159.8,210.44,210.41,41.79470565]
[1731287621989,159.8,210.44,210.41,20.0]
[1731287622514,159.8,210.44,210.41,41.79470565]
[1731287622802,159.8,210.44,210.38,20.0]
[1731287623012,159.8,210.44,210.38,41.79470565]
[1731287623188,159.8,210.44,210.39,4.753]
[1731287623584,181.59470565,210.44,210.37,38.43180565]
[1731287623796,159.8,210.44,210.38,21.79470565]
[1731287624107,181.59470565,210.44,210.37,38.43180565]
[1731287624996,159.8,210.44,210.38,21.79470565]
[1731287625396,181.59470565,210.44,210.37,33.67850565]
[1731287625901,21.79470565,210.42,210.36,21.79470565]
[1731287626089,21.79470565,210.42,210.34,50.32568965]
[1731287626292,21.79470565,210.4,210.34,4.7541]
[1731287627708,21.79470565,210.41,210.34,4.7541]
[1731287627899,186.34720565,210.42,210.34,26.54880565]
[1731287628812,21.79470565,210.4,210.34,4.7541]
[1731287629606,21.79470565,210.4,210.33,21.79470565]
[1731287629915,21.79470565,210.4,210.29,18.22927917]
[1731287629916,21.79470565,210.34,210.26,28.38150565]
[1731287630090,21.79470565,210.32,210.24,26.55100565]
[1731287630293,21.79470565,210.32,210.25,21.79470565]
[1731287630512,181.59470565,210.33,210.26,21.79470565]
[1731287630898,21.79470565,210.32,210.25,21.79470565]
[1731287631228,21.79470565,210.32,210.25,41.79470565]
[1731287631509,21.79470565,210.32,210.25,21.79470565]
[1731287632011,21.79470565,210.32,210.25,26.55070565]
[1731287632212,21.79470565,210.3,210.23,21.79470565]
[1731287632417,21.79470565,210.3,210.22,21.79470565]
[1731287632590,21.79470565,210.31,210.23,21.79470565]
[1731287632918,21.79470565,210.3,210.23,21.79470565]
[1731287633094,21.79470565,210.25,210.19,11.8936]
[1731287633293,38.43000565,210.3,210.16,6.08220673]
[1731287633294,21.79470565,210.24,210.16,26.55280565]
[1731287633515,21.79470565,210.2,210.13,21.79470565]
[1731287633799,21.79470565,210.2,210.12,21.79470565]
[1731287633998,4.756,210.26,210.14,11.8968]
[1731287634205,159.8,210.26,210.14,12.0968]
[1731287634513,159.8,210.29,210.23,21.79470565]
[1731287634812,159.8,210.29,210.15,6.08220673]
[1731287634813,159.8,210.29,210.24,21.79470565]
[1731287635515,159.8,210.29,210.25,21.79470565]
[1731287635712,186.35010565,210.29,210.22,21.79470565]
[1731287636242,186.35010565,210.29,210.09,26.55450565]
[1731287636243,21.79470565,210.23,210.09,26.55450565]
[1731287636419,159.8,210.22,210.1,11.8989]
[1731287636607,21.79470565,210.19,210.11,21.79470565]
[1731287636909,21.79470565,210.17,210.1,33.69360565]